Workbook

Sheet 問１
A6: 支店対抗ゴルフコンペ
A8: エントリNo. | B8: 名前 | C8: アウト | D8: イン | E8: グロス | F8: ハンディ | G8: ネット
B9: 江口正治 | C9: 60 | D9: 55 | F9: 30
B10: 天野淳也 | C10: 54 | D10: 49 | F10: 25
B11: 中川智紀 | C11: 46 | D11: 39 | F11: 12
B12: 北野孝司 | C12: 64 | D12: 69 | F12: 36
B13: 稲垣智也 | C13: 70 | D13: 65 | F13: 40
B14: 松岡学 | C14: 42 | D14: 46 | F14: 8
B15: 仲井孝司 | C15: 55 | D15: 51 | F15: 22
B16: 土井真弓 | C16: 47 | D16: 50 | F16: 20
B17: 中山幸一 | C17: 45 | D17: 47 | F17: 10
B18: 渡辺陽子 | C18: 68 | D18: 63 | F18: 36
B19: 森真澄 | C19: 57 | D19: 58 | F19: 24
B20: 新城賢治 | C20: 58 | D20: 58 | F20: 28
B21: 長瀬晴彦 | C21: 53 | D21: 48 | F21: 16
B22: 吉本沙織 | C22: 62 | D22: 61 | F22: 30
B23: 松本剛 | C23: 51 | D23: 60 | F23: 33
B24: 木内哲也 | C24: 56 | D24: 45 | F24: 18
A45: 支店対抗ゴルフコンペ
A47: エントリNo. | B47: 名前 | C47: アウト | D47: イン | E47: グロス | F47: ハンディ | G47: ネット
A48: 1 | B48: 江口正治 | C48: 60 | D48: 55 | E48: =C48+D48 -> 115 | F48: 30 | G48: =E48-F48 -> 85
A49: 2 | B49: 天野淳也 | C49: 54 | D49: 49 | E49: =C49+D49 -> 103 | F49: 25 | G49: =E49-F49 -> 78
A50: 3 | B50: 中川智紀 | C50: 46 | D50: 39 | E50: 85 | F50: 12 | G50: 73
A51: 4 | B51: 北野孝司 | C51: 64 | D51: 69 | E51: 133 | F51: 36 | G51: 97
A52: 5 | B52: 稲垣智也 | C52: 70 | D52: 65 | E52: 135 | F52: 40 | G52: 95
A53: 6 | B53: 松岡学 | C53: 42 | D53: 46 | E53: 88 | F53: 8 | G53: 80
A54: 7 | B54: 仲井孝司 | C54: 55 | D54: 51 | E54: 106 | F54: 22 | G54: 84
A55: 8 | B55: 土井真弓 | C55: 47 | D55: 50 | E55: 97 | F55: 20 | G55: 77
A56: 9 | B56: 中山幸一 | C56: 45 | D56: 47 | E56: 92 | F56: 10 | G56: 82
A57: 10 | B57: 渡辺陽子 | C57: 68 | D57: 63 | E57: 131 | F57: 36 | G57: 95
A58: 11 | B58: 森真澄 | C58: 57 | D58: 58 | E58: 115 | F58: 24 | G58: 91
A59: 12 | B59: 新城賢治 | C59: 58 | D59: 58 | E59: 116 | F59: 28 | G59: 88
A60: 13 | B60: 長瀬晴彦 | C60: 53 | D60: 48 | E60: 101 | F60: 16 | G60: 85
A61: 14 | B61: 吉本沙織 | C61: 62 | D61: 61 | E61: 123 | F61: 30 | G61: 93
A62: 15 | B62: 松本剛 | C62: 51 | D62: 60 | E62: 111 | F62: 33 | G62: 78
A63: 16 | B63: 木内哲也 | C63: 56 | D63: 45 | E63: =C63+D63 -> 101 | F63: 18 | G63: =E63-F63 -> 83

Sheet 問２
A1: 今期売上実績
D2: 単位(百万円）
B3: 関東 | C3: 関西 | D3: 全国
A4: 冷蔵庫 | B4: 1936 | C4: 2869
A5: 洗濯機 | B5: 2569 | C5: 2697
A6: 電子レンジ | B6: 1569 | C6: 1036
A7: 炊飯器 | B7: 1036 | C7: 2569
A8: テレビ | B8: 3698 | C8: 2569
A9: オーディオ | B9: 2036 | C9: 1936
A10: 上半期計
A11: 冷蔵庫 | B11: 2638 | C11: 2869
A12: 洗濯機 | B12: 2569 | C12: 2697
A13: 電子レンジ | B13: 2869 | C13: 1036
A14: 炊飯器 | B14: 2369 | C14: 2456
A15: テレビ | B15: 1036 | C15: 3987
A16: オーディオ | B16: 2036 | C16: 1936
A17: 下半期計
A18: 今期合計
A21: 薄緑色のセルに合計を求める数式を入力してください。
B39: 関東 | C39: 関西 | D39: 全国
A40: 冷蔵庫 | B40: 1936 | C40: 2869 | D40: =SUM(B40:C40) -> 4805
A41: 洗濯機 | B41: 2569 | C41: 2697 | D41: 5266
A42: 電子レンジ | B42: 1569 | C42: 1036 | D42: 2605
A43: 炊飯器 | B43: 1036 | C43: 2569 | D43: 3605
A44: テレビ | B44: 3698 | C44: 2569 | D44: 6267
A45: オーディオ | B45: 2036 | C45: 1936 | D45: 3972
A46: 上半期計 | B46: =SUM(B40:B45) -> 12844 | C46: =SUM(C40:C45) -> 13676 | D46: =SUM(D40:D45) -> 26520
A47: 冷蔵庫 | B47: 2638 | C47: 2869 | D47: =SUM(B47:C47) -> 5507
A48: 洗濯機 | B48: 2569 | C48: 2697 | D48: 5266
A49: 電子レンジ | B49: 2869 | C49: 1036 | D49: 3905
A50: 炊飯器 | B50: 2369 | C50: 2456 | D50: 4825
A51: テレビ | B51: 1036 | C51: 3987 | D51: 5023
A52: オーディオ | B52: 2036 | C52: 1936 | D52: 3972
A53: 下半期計 | B53: =SUM(B47:B52) -> 13517 | C53: =SUM(C47:C52) -> 14981 | D53: =SUM(D47:D52) -> 28498
A54: 今期合計 | B54: =B46+B53 -> 26361 | C54: =C46+C53 -> 28657 | D54: =D46+D53 -> 55018

Sheet 問３
A4: 日付 | B4: 支店 | C4: 担当者 | D4: 取引先 | E4: 商品名 | F4: 数量 | G4: 単価 | H4: 売上金額
A5: 1999-01-10 | B5: 本社 | C5: 田村 | D5: 竹芝商事 | E5: パソコン | F5: 15 | G5: 200000
A6: 1999-01-12 | B6: 京都 | C6: 山田 | D6: 竹芝商事 | E6: 携帯電話 | F6: 20 | G6: 15000
A7: 1999-01-23 | B7: 大阪 | C7: 北村 | D7: 尾林貿易 | E7: プリンタ | F7: 5 | G7: 120000
A8: 1999-01-23 | B8: 横浜 | C8: 沖田 | D8: 福丸物産 | E8: スキャナ | F8: 5 | G8: 50000 | I8: 問題
A9: 1999-01-24 | B9: 大阪 | C9: 山本 | D9: 福丸物産 | E9: スキャナ | F9: 8 | G9: 50000
A10: 1999-01-24 | B10: 横浜 | C10: 原 | D10: 福丸物産 | E10: ファクシミリ | F10: 10 | G10: 38000 | J10: 色の部分に計算式をいれてください
A11: 1999-01-29 | B11: 本社 | C11: 荒木 | D11: 尾林貿易 | E11: パソコン | F11: 10 | G11: 200000
A12: 1999-01-30 | B12: 京都 | C12: 澤辺 | D12: 竹芝商事 | E12: パソコン | F12: 5 | G12: 200000
A13: 1999-02-05 | B13: 横浜 | C13: 佐々木 | D13: 福丸物産 | E13: 携帯電話 | F13: 25 | G13: 15000
A14: 1999-02-05 | B14: 横浜 | C14: 佐々木 | D14: 竹芝商事 | E14: スキャナ | F14: 5 | G14: 50000
A15: 1999-02-10 | B15: 本社 | C15: 荒木 | D15: 尾林貿易 | E15: ファクシミリ | F15: 13 | G15: 38000
A16: 1999-02-15 | B16: 本社 | C16: 田村 | D16: 尾林貿易 | E16: ファクシミリ | F16: 6 | G16: 38000
A17: 1999-02-18 | B17: 横浜 | C17: 沖田 | D17: 竹芝商事 | E17: プリンタ | F17: 8 | G17: 120000
A18: 1999-02-19 | B18: 京都 | C18: 澤辺 | D18: 福丸物産 | E18: パソコン | F18: 5 | G18: 200000
A19: 1999-02-22 | B19: 横浜 | C19: 原 | D19: 尾林貿易 | E19: プリンタ | F19: 10 | G19: 120000
A20: 1999-02-22 | B20: 大阪 | C20: 山本 | D20: 尾林貿易 | E20: 携帯電話 | F20: 30 | G20: 15000
A21: 1999-02-22 | B21: 本社 | C21: 田村 | D21: 竹芝商事 | E21: スキャナ | F21: 5 | G21: 50000
A22: 1999-02-25 | B22: 大阪 | C22: 北村 | D22: 尾林貿易 | E22: プリンタ | F22: 8 | G22: 120000
A23: 1999-03-03 | B23: 大阪 | C23: 山本 | D23: 竹芝商事 | E23: スキャナ | F23: 2 | G23: 50000
A24: 1999-03-05 | B24: 京都 | C24: 山田 | D24: 竹芝商事 | E24: 携帯電話 | F24: 20 | G24: 15000
A25: 1999-03-06 | B25: 本社 | C25: 田村 | D25: 竹芝商事 | E25: プリンタ | F25: 5 | G25: 120000
A26: 1999-03-08 | B26: 大阪 | C26: 北村 | D26: 福丸物産 | E26: パソコン | F26: 15 | G26: 200000
A27: 1999-03-08 | B27: 京都 | C27: 山田 | D27: 竹芝商事 | E27: ファクシミリ | F27: 5 | G27: 38000
A28: 1999-03-08 | B28: 横浜 | C28: 原 | D28: 竹芝商事 | E28: スキャナ | F28: 5 | G28: 50000
A29: 1999-03-14 | B29: 本社 | C29: 荒木 | D29: 竹芝商事 | E29: ファクシミリ | F29: 8 | G29: 38000
A30: 1999-03-25 | B30: 横浜 | C30: 沖田 | D30: 尾林貿易 | E30: スキャナ | F30: 5 | G30: 50000
A31: 1999-04-01 | B31: 横浜 | C31: 沖田 | D31: 尾林貿易 | E31: ファクシミリ | F31: 5 | G31: 38000
A32: 1999-04-03 | B32: 大阪 | C32: 山本 | D32: 福丸物産 | E32: パソコン | F32: 15 | G32: 200000
A33: 1999-04-12 | B33: 京都 | C33: 澤辺 | D33: 尾林貿易 | E33: スキャナ | F33: 5 | G33: 50000
A34: 1999-04-12 | B34: 本社 | C34: 荒木 | D34: 尾林貿易 | E34: パソコン | F34: 10 | G34: 200000
A35: 1999-04-13 | B35: 大阪 | C35: 山本 | D35: 竹芝商事 | E35: プリンタ | F35: 5 | G35: 120000
A36: 1999-04-18 | B36: 京都 | C36: 澤辺 | D36: 竹芝商事 | E36: 携帯電話 | F36: 20 | G36: 15000
A37: 1999-04-20 | B37: 横浜 | C37: 原 | D37: 福丸物産 | E37: パソコン | F37: 10 | G37: 200000
A38: 1999-04-20 | B38: 大阪 | C38: 北村 | D38: 竹芝商事 | E38: 携帯電話 | F38: 10 | G38: 15000
A39: 1999-04-25 | B39: 京都 | C39: 山田 | D39: 尾林貿易 | E39: ファクシミリ | F39: 5 | G39: 38000
A40: 1999-04-30 | B40: 大阪 | C40: 北村 | D40: 福丸物産 | E40: プリンタ | F40: 6 | G40: 120000
A41: 1999-05-03 | B41: 横浜 | C41: 佐々木 | D41: 竹芝商事 | E41: スキャナ | F41: 3 | G41: 50000
A42: 1999-05-03 | B42: 本社 | C42: 荒木 | D42: 尾林貿易 | E42: パソコン | F42: 5 | G42: 200000
A43: 1999-05-04 | B43: 大阪 | C43: 山本 | D43: 福丸物産 | E43: 携帯電話 | F43: 10 | G43: 15000
A44: 1999-05-04 | B44: 大阪 | C44: 北村 | D44: 尾林貿易 | E44: スキャナ | F44: 5 | G44: 50000
A45: 1999-05-05 | B45: 横浜 | C45: 佐々木 | D45: 福丸物産 | E45: パソコン | F45: 20 | G45: 200000
A46: 1999-05-06 | B46: 本社 | C46: 荒木 | D46: 福丸物産 | E46: スキャナ | F46: 6 | G46: 50000
A47: 1999-05-06 | B47: 本社 | C47: 荒木 | D47: 竹芝商事 | E47: プリンタ | F47: 3 | G47: 120000
A48: 1999-05-20 | B48: 京都 | C48: 山田 | D48: 尾林貿易 | E48: プリンタ | F48: 7 | G48: 120000
A49: 1999-05-25 | B49: 大阪 | C49: 山本 | D49: 福丸物産 | E49: プリンタ | F49: 3 | G49: 120000
A50: 1999-06-01 | B50: 本社 | C50: 荒木 | D50: 福丸物産 | E50: スキャナ | F50: 4 | G50: 50000
A51: 1999-06-01 | B51: 横浜 | C51: 佐々木 | D51: 竹芝商事 | E51: 携帯電話 | F51: 30 | G51: 15000
A52: 1999-06-05 | B52: 大阪 | C52: 北村 | D52: 尾林貿易 | E52: パソコン | F52: 8 | G52: 200000
A53: 1999-06-12 | B53: 大阪 | C53: 山本 | D53: 竹芝商事 | E53: ファクシミリ | F53: 5 | G53: 38000
A54: 1999-06-18 | B54: 横浜 | C54: 沖田 | D54: 竹芝商事 | E54: ファクシミリ | F54: 5 | G54: 38000
A55: 1999-06-18 | B55: 本社 | C55: 荒木 | D55: 福丸物産 | E55: 携帯電話 | F55: 10 | G55: 15000
A56: 1999-06-22 | B56: 横浜 | C56: 佐々木 | D56: 福丸物産 | E56: プリンタ | F56: 5 | G56: 120000
A57: 1999-06-23 | B57: 大阪 | C57: 北村 | D57: 尾林貿易 | E57: スキャナ | F57: 8 | G57: 50000
A58: 1999-06-23 | B58: 大阪 | C58: 北村 | D58: 竹芝商事 | E58: ファクシミリ | F58: 5 | G58: 38000
A59: 1999-06-25 | B59: 京都 | C59: 澤辺 | D59: 尾林貿易 | E59: ファクシミリ | F59: 5 | G59: 38000
A60: 1999-06-29 | B60: 大阪 | C60: 山本 | D60: 竹芝商事 | E60: 携帯電話 | F60: 30 | G60: 15000
A61: 1999-06-29 | B61: 本社 | C61: 荒木 | D61: 竹芝商事 | E61: ファクシミリ | F61: 5 | G61: 38000
A62: 1999-06-30 | B62: 横浜 | C62: 沖田 | D62: 福丸物産 | E62: 携帯電話 | F62: 20 | G62: 15000
A63: 1999-07-10 | B63: 本社 | C63: 田村 | D63: 竹芝商事 | E63: パソコン | F63: 5 | G63: 200000
A64: 1999-07-12 | B64: 京都 | C64: 山田 | D64: 竹芝商事 | E64: 携帯電話 | F64: 15 | G64: 15000
A65: 1999-07-13 | B65: 大阪 | C65: 北村 | D65: 尾林貿易 | E65: プリンタ | F65: 5 | G65: 120000
A66: 1999-07-23 | B66: 横浜 | C66: 沖田 | D66: 福丸物産 | E66: スキャナ | F66: 8 | G66: 50000
A67: 1999-07-24 | B67: 大阪 | C67: 山本 | D67: 福丸物産 | E67: スキャナ | F67: 8 | G67: 50000
A68: 1999-07-24 | B68: 横浜 | C68: 原 | D68: 福丸物産 | E68: ファクシミリ | F68: 6 | G68: 38000
A69: 1999-07-29 | B69: 本社 | C69: 荒木 | D69: 尾林貿易 | E69: パソコン | F69: 10 | G69: 200000
A70: 1999-07-30 | B70: 京都 | C70: 澤辺 | D70: 竹芝商事 | E70: パソコン | F70: 7 | G70: 200000
A71: 1999-08-06 | B71: 横浜 | C71: 佐々木 | D71: 福丸物産 | E71: 携帯電話 | F71: 20 | G71: 15000
A72: 1999-08-07 | B72: 横浜 | C72: 佐々木 | D72: 竹芝商事 | E72: スキャナ | F72: 5 | G72: 50000
A73: 1999-08-08 | B73: 本社 | C73: 荒木 | D73: 尾林貿易 | E73: ファクシミリ | F73: 7 | G73: 38000
A74: 1999-08-09 | B74: 本社 | C74: 田村 | D74: 尾林貿易 | E74: ファクシミリ | F74: 6 | G74: 38000
A75: 1999-08-10 | B75: 横浜 | C75: 沖田 | D75: 竹芝商事 | E75: プリンタ | F75: 30 | G75: 120000
A76: 1999-08-20 | B76: 京都 | C76: 澤辺 | D76: 福丸物産 | E76: パソコン | F76: 5 | G76: 200000
A77: 1999-08-20 | B77: 横浜 | C77: 原 | D77: 尾林貿易 | E77: プリンタ | F77: 20 | G77: 120000
A78: 1999-08-20 | B78: 大阪 | C78: 山本 | D78: 尾林貿易 | E78: 携帯電話 | F78: 30 | G78: 15000
A79: 1999-08-25 | B79: 本社 | C79: 田村 | D79: 竹芝商事 | E79: スキャナ | F79: 6 | G79: 50000
A80: 1999-08-26 | B80: 大阪 | C80: 北村 | D80: 尾林貿易 | E80: プリンタ | F80: 8 | G80: 120000
A81: 1999-09-03 | B81: 大阪 | C81: 山本 | D81: 竹芝商事 | E81: スキャナ | F81: 2 | G81: 50000
A82: 1999-09-04 | B82: 京都 | C82: 山田 | D82: 竹芝商事 | E82: 携帯電話 | F82: 20 | G82: 15000
A83: 1999-09-15 | B83: 本社 | C83: 田村 | D83: 竹芝商事 | E83: プリンタ | F83: 5 | G83: 120000
A84: 1999-09-18 | B84: 大阪 | C84: 北村 | D84: 福丸物産 | E84: パソコン | F84: 15 | G84: 200000
A85: 1999-09-19 | B85: 京都 | C85: 山田 | D85: 竹芝商事 | E85: ファクシミリ | F85: 5 | G85: 38000
A86: 1999-09-20 | B86: 横浜 | C86: 原 | D86: 竹芝商事 | E86: スキャナ | F86: 5 | G86: 50000
A87: 1999-09-27 | B87: 本社 | C87: 荒木 | D87: 竹芝商事 | E87: ファクシミリ | F87: 8 | G87: 38000
A88: 1999-09-28 | B88: 横浜 | C88: 沖田 | D88: 尾林貿易 | E88: スキャナ | F88: 5 | G88: 50000
A89: 1999-10-01 | B89: 横浜 | C89: 沖田 | D89: 尾林貿易 | E89: ファクシミリ | F89: 5 | G89: 38000
A90: 1999-10-02 | B90: 大阪 | C90: 山本 | D90: 福丸物産 | E90: パソコン | F90: 15 | G90: 200000
A91: 1999-10-12 | B91: 京都 | C91: 澤辺 | D91: 尾林貿易 | E91: スキャナ | F91: 5 | G91: 50000
A92: 1999-10-15 | B92: 本社 | C92: 荒木 | D92: 尾林貿易 | E92: パソコン | F92: 10 | G92: 200000
A93: 1999-10-16 | B93: 大阪 | C93: 山本 | D93: 竹芝商事 | E93: プリンタ | F93: 5 | G93: 120000
A94: 1999-10-17 | B94: 京都 | C94: 澤辺 | D94: 竹芝商事 | E94: 携帯電話 | F94: 20 | G94: 15000
A95: 1999-10-20 | B95: 横浜 | C95: 原 | D95: 福丸物産 | E95: パソコン | F95: 10 | G95: 200000
A96: 1999-10-20 | B96: 大阪 | C96: 北村 | D96: 竹芝商事 | E96: 携帯電話 | F96: 10 | G96: 15000
A97: 1999-10-21 | B97: 京都 | C97: 山田 | D97: 尾林貿易 | E97: ファクシミリ | F97: 5 | G97: 38000
A98: 1999-10-22 | B98: 大阪 | C98: 北村 | D98: 福丸物産 | E98: プリンタ | F98: 6 | G98: 120000
A99: 1999-11-03 | B99: 横浜 | C99: 佐々木 | D99: 竹芝商事 | E99: スキャナ | F99: 3 | G99: 50000
A100: 1999-11-04 | B100: 本社 | C100: 荒木 | D100: 尾林貿易 | E100: パソコン | F100: 5 | G100: 200000
A101: 1999-11-06 | B101: 大阪 | C101: 山本 | D101: 福丸物産 | E101: 携帯電話 | F101: 10 | G101: 15000
A102: 1999-11-07 | B102: 大阪 | C102: 北村 | D102: 尾林貿易 | E102: スキャナ | F102: 5 | G102: 50000
A103: 1999-11-12 | B103: 横浜 | C103: 佐々木 | D103: 福丸物産 | E103: パソコン | F103: 10 | G103: 200000
A104: 1999-11-15 | B104: 本社 | C104: 荒木 | D104: 福丸物産 | E104: スキャナ | F104: 6 | G104: 50000
A105: 1999-11-16 | B105: 本社 | C105: 荒木 | D105: 竹芝商事 | E105: プリンタ | F105: 3 | G105: 120000
A106: 1999-11-17 | B106: 京都 | C106: 山田 | D106: 尾林貿易 | E106: プリンタ | F106: 7 | G106: 120000
A107: 1999-11-18 | B107: 大阪 | C107: 山本 | D107: 福丸物産 | E107: プリンタ | F107: 3 | G107: 120000
A108: 1999-12-01 | B108: 本社 | C108: 荒木 | D108: 福丸物産 | E108: スキャナ | F108: 4 | G108: 50000
A109: 1999-12-01 | B109: 横浜 | C109: 佐々木 | D109: 竹芝商事 | E109: 携帯電話 | F109: 10 | G109: 15000
A110: 1999-12-04 | B110: 大阪 | C110: 山本 | D110: 竹芝商事 | E110: ファクシミリ | F110: 5 | G110: 38000
A111: 1999-12-05 | B111: 横浜 | C111: 沖田 | D111: 竹芝商事 | E111: ファクシミリ | F111: 5 | G111: 38000
A112: 1999-12-05 | B112: 本社 | C112: 荒木 | D112: 福丸物産 | E112: 携帯電話 | F112: 10 | G112: 15000
A113: 1999-12-20 | B113: 横浜 | C113: 佐々木 | D113: 福丸物産 | E113: プリンタ | F113: 5 | G113: 120000
A114: 1999-12-20 | B114: 大阪 | C114: 北村 | D114: 尾林貿易 | E114: スキャナ | F114: 8 | G114: 50000
A115: 1999-12-30 | B115: 大阪 | C115: 北村 | D115: 竹芝商事 | E115: ファクシミリ | F115: 5 | G115: 38000
E117: 合計
A133: 日付 | B133: 支店 | C133: 担当者 | D133: 取引先 | E133: 商品名 | F133: 数量 | G133: 単価 | H133: 売上金額
A134: 1999-01-10 | B134: 本社 | C134: 田村 | D134: 竹芝商事 | E134: パソコン | F134: 15 | G134: 200000 | H134: =F134*G134 -> 3000000
A135: 1999-01-12 | B135: 京都 | C135: 山田 | D135: 竹芝商事 | E135: 携帯電話 | F135: 20 | G135: 15000 | H135: =F135*G135 -> 300000
A136: 1999-01-23 | B136: 大阪 | C136: 北村 | D136: 尾林貿易 | E136: プリンタ | F136: 5 | G136: 120000 | H136: 600000
A137: 1999-01-23 | B137: 横浜 | C137: 沖田 | D137: 福丸物産 | E137: スキャナ | F137: 5 | G137: 50000 | H137: 250000 | J137: 問題 | L137: 色の部分に計算式をいれてください
A138: 1999-01-24 | B138: 大阪 | C138: 山本 | D138: 福丸物産 | E138: スキャナ | F138: 8 | G138: 50000 | H138: 400000
A139: 1999-01-24 | B139: 横浜 | C139: 原 | D139: 福丸物産 | E139: ファクシミリ | F139: 10 | G139: 38000 | H139: 380000
A140: 1999-01-29 | B140: 本社 | C140: 荒木 | D140: 尾林貿易 | E140: パソコン | F140: 10 | G140: 200000 | H140: 2000000
A141: 1999-01-30 | B141: 京都 | C141: 澤辺 | D141: 竹芝商事 | E141: パソコン | F141: 5 | G141: 200000 | H141: 1000000
A142: 1999-02-05 | B142: 横浜 | C142: 佐々木 | D142: 福丸物産 | E142: 携帯電話 | F142: 25 | G142: 15000 | H142: 375000
A143: 1999-02-05 | B143: 横浜 | C143: 佐々木 | D143: 竹芝商事 | E143: スキャナ | F143: 5 | G143: 50000 | H143: 250000
A144: 1999-02-10 | B144: 本社 | C144: 荒木 | D144: 尾林貿易 | E144: ファクシミリ | F144: 13 | G144: 38000 | H144: 494000
A145: 1999-02-15 | B145: 本社 | C145: 田村 | D145: 尾林貿易 | E145: ファクシミリ | F145: 6 | G145: 38000 | H145: 228000
A146: 1999-02-18 | B146: 横浜 | C146: 沖田 | D146: 竹芝商事 | E146: プリンタ | F146: 8 | G146: 120000 | H146: 960000
A147: 1999-02-19 | B147: 京都 | C147: 澤辺 | D147: 福丸物産 | E147: パソコン | F147: 5 | G147: 200000 | H147: 1000000
A148: 1999-02-22 | B148: 横浜 | C148: 原 | D148: 尾林貿易 | E148: プリンタ | F148: 10 | G148: 120000 | H148: 1200000
A149: 1999-02-22 | B149: 大阪 | C149: 山本 | D149: 尾林貿易 | E149: 携帯電話 | F149: 30 | G149: 15000 | H149: 450000
A150: 1999-02-22 | B150: 本社 | C150: 田村 | D150: 竹芝商事 | E150: スキャナ | F150: 5 | G150: 50000 | H150: 250000
A151: 1999-02-25 | B151: 大阪 | C151: 北村 | D151: 尾林貿易 | E151: プリンタ | F151: 8 | G151: 120000 | H151: 960000
A152: 1999-03-03 | B152: 大阪 | C152: 山本 | D152: 竹芝商事 | E152: スキャナ | F152: 2 | G152: 50000 | H152: 100000
A153: 1999-03-05 | B153: 京都 | C153: 山田 | D153: 竹芝商事 | E153: 携帯電話 | F153: 20 | G153: 15000 | H153: 300000
A154: 1999-03-06 | B154: 本社 | C154: 田村 | D154: 竹芝商事 | E154: プリンタ | F154: 5 | G154: 120000 | H154: 600000
A155: 1999-03-08 | B155: 大阪 | C155: 北村 | D155: 福丸物産 | E155: パソコン | F155: 15 | G155: 200000 | H155: 3000000
A156: 1999-03-08 | B156: 京都 | C156: 山田 | D156: 竹芝商事 | E156: ファクシミリ | F156: 5 | G156: 38000 | H156: 190000
A157: 1999-03-08 | B157: 横浜 | C157: 原 | D157: 竹芝商事 | E157: スキャナ | F157: 5 | G157: 50000 | H157: 250000
A158: 1999-03-14 | B158: 本社 | C158: 荒木 | D158: 竹芝商事 | E158: ファクシミリ | F158: 8 | G158: 38000 | H158: 304000
A159: 1999-03-25 | B159: 横浜 | C159: 沖田 | D159: 尾林貿易 | E159: スキャナ | F159: 5 | G159: 50000 | H159: 250000
A160: 1999-04-01 | B160: 横浜 | C160: 沖田 | D160: 尾林貿易 | E160: ファクシミリ | F160: 5 | G160: 38000 | H160: 190000
A161: 1999-04-03 | B161: 大阪 | C161: 山本 | D161: 福丸物産 | E161: パソコン | F161: 15 | G161: 200000 | H161: 3000000
A162: 1999-04-12 | B162: 京都 | C162: 澤辺 | D162: 尾林貿易 | E162: スキャナ | F162: 5 | G162: 50000 | H162: 250000
A163: 1999-04-12 | B163: 本社 | C163: 荒木 | D163: 尾林貿易 | E163: パソコン | F163: 10 | G163: 200000 | H163: 2000000
A164: 1999-04-13 | B164: 大阪 | C164: 山本 | D164: 竹芝商事 | E164: プリンタ | F164: 5 | G164: 120000 | H164: 600000
A165: 1999-04-18 | B165: 京都 | C165: 澤辺 | D165: 竹芝商事 | E165: 携帯電話 | F165: 20 | G165: 15000 | H165: 300000
A166: 1999-04-20 | B166: 横浜 | C166: 原 | D166: 福丸物産 | E166: パソコン | F166: 10 | G166: 200000 | H166: 2000000
A167: 1999-04-20 | B167: 大阪 | C167: 北村 | D167: 竹芝商事 | E167: 携帯電話 | F167: 10 | G167: 15000 | H167: 150000
A168: 1999-04-25 | B168: 京都 | C168: 山田 | D168: 尾林貿易 | E168: ファクシミリ | F168: 5 | G168: 38000 | H168: 190000
A169: 1999-04-30 | B169: 大阪 | C169: 北村 | D169: 福丸物産 | E169: プリンタ | F169: 6 | G169: 120000 | H169: 720000
A170: 1999-05-03 | B170: 横浜 | C170: 佐々木 | D170: 竹芝商事 | E170: スキャナ | F170: 3 | G170: 50000 | H170: 150000
A171: 1999-05-03 | B171: 本社 | C171: 荒木 | D171: 尾林貿易 | E171: パソコン | F171: 5 | G171: 200000 | H171: 1000000
A172: 1999-05-04 | B172: 大阪 | C172: 山本 | D172: 福丸物産 | E172: 携帯電話 | F172: 10 | G172: 15000 | H172: 150000
A173: 1999-05-04 | B173: 大阪 | C173: 北村 | D173: 尾林貿易 | E173: スキャナ | F173: 5 | G173: 50000 | H173: 250000
A174: 1999-05-05 | B174: 横浜 | C174: 佐々木 | D174: 福丸物産 | E174: パソコン | F174: 20 | G174: 200000 | H174: 4000000
A175: 1999-05-06 | B175: 本社 | C175: 荒木 | D175: 福丸物産 | E175: スキャナ | F175: 6 | G175: 50000 | H175: 300000
A176: 1999-05-06 | B176: 本社 | C176: 荒木 | D176: 竹芝商事 | E176: プリンタ | F176: 3 | G176: 120000 | H176: 360000
A177: 1999-05-20 | B177: 京都 | C177: 山田 | D177: 尾林貿易 | E177: プリンタ | F177: 7 | G177: 120000 | H177: 840000
A178: 1999-05-25 | B178: 大阪 | C178: 山本 | D178: 福丸物産 | E178: プリンタ | F178: 3 | G178: 120000 | H178: 360000
A179: 1999-06-01 | B179: 本社 | C179: 荒木 | D179: 福丸物産 | E179: スキャナ | F179: 4 | G179: 50000 | H179: 200000
A180: 1999-06-01 | B180: 横浜 | C180: 佐々木 | D180: 竹芝商事 | E180: 携帯電話 | F180: 30 | G180: 15000 | H180: 450000
A181: 1999-06-05 | B181: 大阪 | C181: 北村 | D181: 尾林貿易 | E181: パソコン | F181: 8 | G181: 200000 | H181: 1600000
A182: 1999-06-12 | B182: 大阪 | C182: 山本 | D182: 竹芝商事 | E182: ファクシミリ | F182: 5 | G182: 38000 | H182: 190000
A183: 1999-06-18 | B183: 横浜 | C183: 沖田 | D183: 竹芝商事 | E183: ファクシミリ | F183: 5 | G183: 38000 | H183: 190000
A184: 1999-06-18 | B184: 本社 | C184: 荒木 | D184: 福丸物産 | E184: 携帯電話 | F184: 10 | G184: 15000 | H184: 150000
A185: 1999-06-22 | B185: 横浜 | C185: 佐々木 | D185: 福丸物産 | E185: プリンタ | F185: 5 | G185: 120000 | H185: 600000
A186: 1999-06-23 | B186: 大阪 | C186: 北村 | D186: 尾林貿易 | E186: スキャナ | F186: 8 | G186: 50000 | H186: 400000
A187: 1999-06-23 | B187: 大阪 | C187: 北村 | D187: 竹芝商事 | E187: ファクシミリ | F187: 5 | G187: 38000 | H187: 190000
A188: 1999-06-25 | B188: 京都 | C188: 澤辺 | D188: 尾林貿易 | E188: ファクシミリ | F188: 5 | G188: 38000 | H188: 190000
A189: 1999-06-29 | B189: 大阪 | C189: 山本 | D189: 竹芝商事 | E189: 携帯電話 | F189: 30 | G189: 15000 | H189: 450000
A190: 1999-06-29 | B190: 本社 | C190: 荒木 | D190: 竹芝商事 | E190: ファクシミリ | F190: 5 | G190: 38000 | H190: 190000
A191: 1999-06-30 | B191: 横浜 | C191: 沖田 | D191: 福丸物産 | E191: 携帯電話 | F191: 20 | G191: 15000 | H191: 300000
A192: 1999-07-10 | B192: 本社 | C192: 田村 | D192: 竹芝商事 | E192: パソコン | F192: 5 | G192: 200000 | H192: 1000000
A193: 1999-07-12 | B193: 京都 | C193: 山田 | D193: 竹芝商事 | E193: 携帯電話 | F193: 15 | G193: 15000 | H193: 225000
A194: 1999-07-13 | B194: 大阪 | C194: 北村 | D194: 尾林貿易 | E194: プリンタ | F194: 5 | G194: 120000 | H194: 600000
A195: 1999-07-23 | B195: 横浜 | C195: 沖田 | D195: 福丸物産 | E195: スキャナ | F195: 8 | G195: 50000 | H195: 400000
A196: 1999-07-24 | B196: 大阪 | C196: 山本 | D196: 福丸物産 | E196: スキャナ | F196: 8 | G196: 50000 | H196: 400000
A197: 1999-07-24 | B197: 横浜 | C197: 原 | D197: 福丸物産 | E197: ファクシミリ | F197: 6 | G197: 38000 | H197: 228000
A198: 1999-07-29 | B198: 本社 | C198: 荒木 | D198: 尾林貿易 | E198: パソコン | F198: 10 | G198: 200000 | H198: 2000000
A199: 1999-07-30 | B199: 京都 | C199: 澤辺 | D199: 竹芝商事 | E199: パソコン | F199: 7 | G199: 200000 | H199: =F199*G199 -> 1400000
A200: 1999-08-06 | B200: 横浜 | C200: 佐々木 | D200: 福丸物産 | E200: 携帯電話 | F200: 20 | G200: 15000 | H200: 300000
A201: 1999-08-07 | B201: 横浜 | C201: 佐々木 | D201: 竹芝商事 | E201: スキャナ | F201: 5 | G201: 50000 | H201: 250000
A202: 1999-08-08 | B202: 本社 | C202: 荒木 | D202: 尾林貿易 | E202: ファクシミリ | F202: 7 | G202: 38000 | H202: 266000
A203: 1999-08-09 | B203: 本社 | C203: 田村 | D203: 尾林貿易 | E203: ファクシミリ | F203: 6 | G203: 38000 | H203: 228000
A204: 1999-08-10 | B204: 横浜 | C204: 沖田 | D204: 竹芝商事 | E204: プリンタ | F204: 30 | G204: 120000 | H204: 3600000
A205: 1999-08-20 | B205: 京都 | C205: 澤辺 | D205: 福丸物産 | E205: パソコン | F205: 5 | G205: 200000 | H205: 1000000
A206: 1999-08-20 | B206: 横浜 | C206: 原 | D206: 尾林貿易 | E206: プリンタ | F206: 20 | G206: 120000 | H206: 2400000
A207: 1999-08-20 | B207: 大阪 | C207: 山本 | D207: 尾林貿易 | E207: 携帯電話 | F207: 30 | G207: 15000 | H207: 450000
A208: 1999-08-25 | B208: 本社 | C208: 田村 | D208: 竹芝商事 | E208: スキャナ | F208: 6 | G208: 50000 | H208: 300000
A209: 1999-08-26 | B209: 大阪 | C209: 北村 | D209: 尾林貿易 | E209: プリンタ | F209: 8 | G209: 120000 | H209: 960000
A210: 1999-09-03 | B210: 大阪 | C210: 山本 | D210: 竹芝商事 | E210: スキャナ | F210: 2 | G210: 50000 | H210: 100000
A211: 1999-09-04 | B211: 京都 | C211: 山田 | D211: 竹芝商事 | E211: 携帯電話 | F211: 20 | G211: 15000 | H211: 300000
A212: 1999-09-15 | B212: 本社 | C212: 田村 | D212: 竹芝商事 | E212: プリンタ | F212: 5 | G212: 120000 | H212: 600000
A213: 1999-09-18 | B213: 大阪 | C213: 北村 | D213: 福丸物産 | E213: パソコン | F213: 15 | G213: 200000 | H213: 3000000
A214: 1999-09-19 | B214: 京都 | C214: 山田 | D214: 竹芝商事 | E214: ファクシミリ | F214: 5 | G214: 38000 | H214: 190000
A215: 1999-09-20 | B215: 横浜 | C215: 原 | D215: 竹芝商事 | E215: スキャナ | F215: 5 | G215: 50000 | H215: 250000
A216: 1999-09-27 | B216: 本社 | C216: 荒木 | D216: 竹芝商事 | E216: ファクシミリ | F216: 8 | G216: 38000 | H216: 304000
A217: 1999-09-28 | B217: 横浜 | C217: 沖田 | D217: 尾林貿易 | E217: スキャナ | F217: 5 | G217: 50000 | H217: 250000
A218: 1999-10-01 | B218: 横浜 | C218: 沖田 | D218: 尾林貿易 | E218: ファクシミリ | F218: 5 | G218: 38000 | H218: 190000
A219: 1999-10-02 | B219: 大阪 | C219: 山本 | D219: 福丸物産 | E219: パソコン | F219: 15 | G219: 200000 | H219: 3000000
... 26 more rows

Sheet 問４
B1: 海外旅行ツアー参加人数集計表
B2: 2003年度
B3: コース名 | C3: 旅行日数 | D3: 申込数（人） | E3: ｷｬﾝｾﾙ数（人） | F3: 参加数（人） | H3: 問題
B4: ワイキキ | C4: ８日間 | D4: 479 | E4: 38 | I4: 色の部分に計算式をいれてください
B5: ラスベガス | C5: ７日間 | D5: 350 | E5: 23
B6: ホノルル | C6: ５日間 | D6: 609 | E6: 49
B7: バリ島 | C7: ６日間 | D7: 183 | E7: 32
B8: パリ・ロンドン | C8: ８日間 | D8: 249 | E8: 31
B9: ニューヨーク | C9: ６日間 | D9: 250 | E9: 28
B10: ニュージーランド | C10: ７日間 | D10: 134 | E10: 32
B11: フロリダ | C11: ９日間 | D11: 428 | E11: 31
B12: タヒチ | C12: １０日間 | D12: 106 | E12: 6
B13: スペイン | C13: ８日間 | D13: 139 | E13: 5
B14: シンガポール | C14: ５日間 | D14: 275 | E14: 36
B15: ジャマイカ | C15: ８日間 | D15: 85 | E15: 5
B16: ギリシャ | C16: ８日間 | D16: 94 | E16: 3
B17: カナダ | C17: １０日間 | D17: 123 | E17: 21
B18: オーストラリア | C18: ６日間 | D18: 387 | E18: 26
B19: イタリア | C19: ９日間 | D19: 178 | E19: 28
B20: 総合計
B40: 海外旅行ツアー参加人数集計表
B41: 99年度
B42: コース名 | C42: 旅行日数 | D42: 申込数（人） | E42: ｷｬﾝｾﾙ数（人） | F42: 参加数（人）
B43: ワイキキ | C43: ８日間 | D43: 479 | E43: 38 | F43: =D43-E43 -> 441
B44: ラスベガス | C44: ７日間 | D44: 350 | E44: 23 | F44: =D44-E44 -> 327
B45: ホノルル | C45: ５日間 | D45: 609 | E45: 49 | F45: 560
B46: バリ島 | C46: ６日間 | D46: 183 | E46: 32 | F46: 151
B47: パリ・ロンドン | C47: ８日間 | D47: 249 | E47: 31 | F47: 218
B48: ニューヨーク | C48: ６日間 | D48: 250 | E48: 28 | F48: 222
B49: ニュージーランド | C49: ７日間 | D49: 134 | E49: 32 | F49: 102
B50: フロリダ | C50: ９日間 | D50: 428 | E50: 31 | F50: 397
B51: タヒチ | C51: １０日間 | D51: 106 | E51: 6 | F51: 100
B52: スペイン | C52: ８日間 | D52: 139 | E52: 5 | F52: 134
B53: シンガポール | C53: ５日間 | D53: 275 | E53: 36 | F53: 239
B54: ジャマイカ | C54: ８日間 | D54: 85 | E54: 5 | F54: 80
B55: ギリシャ | C55: ８日間 | D55: 94 | E55: 3 | F55: 91
B56: カナダ | C56: １０日間 | D56: 123 | E56: 21 | F56: 102
B57: オーストラリア | C57: ６日間 | D57: 387 | E57: 26 | F57: 361
B58: イタリア | C58: ９日間 | D58: 178 | E58: 28 | F58: 150
B59: 総合計 | D59: =SUM(D43:D58) -> 4069 | E59: =SUM(E43:E58) -> 394 | F59: =SUM(F43:F58) -> 3675

Sheet 問５
F2: Tel.03-１１１１－１１１１
F3: Fax.03-２２２２－２２２２
A4: 請求書 | E4: 発行日 | F4: 2016-07-08
E5: 伝票番号 | F5: 2006
F6: 担当:松本
A9: 株式会社 岡田商会御中
A14: 日頃はたいへんお世話になっております。 さて、先月分の請求金額は下記のとおりです。 下記期限までにお振込み頂きます様よろしくお願い申し上げます。
B17: 9月分請求合計
A19: 請求明細
A20: 商品番号 | B20: 商品名 | C20: 内容 | D20: 単価 | E20: 数量 | F20: 金額
A21: S1001 | B21: パソコンはじめてセット | C21: セット１ | D21: 350000 | E21: 35
A22: N1002 | B22: バイオス ノート | C22: PCC-C1 | D22: 250000 | E22: 30
A23: N1003 | B23: メブウス ノート | C23: MN-600 | D23: 280000 | E23: 30
A24: N1004 | B24: チンクパッド ノート | C24: IVM-500 | D24: 260000 | E24: 20
A25: D1005 | B25: 液晶ディスプレイ | C25: 15インチ | D25: 150000 | E25: 15
A26: D1006 | B26: 液晶ディスプレイ | C26: 14インチ | D26: 120000 | E26: 20
A27: M2002 | B27: 増設メモリ | C27: 64MB×２ | D27: 15000 | E27: 30
A28: M2003 | B28: 増設メモリ | C28: 128MB×２ | D28: 28000 | E28: 10
E29: 小計
E30: 消費税(8%)
E31: 総計
A38: お振込口座
B40: 西京銀行 赤坂支店 普通1000000
B41: (株)なんばショップ
A43: お振込期限
B44: 今月末日
F61: Tel.03-１１１１－１１１１
F62: Fax.03-２２２２－２２２２
A63: 請求書 | E63: 発行日 | F63: 2003-10-05
E64: 伝票番号 | F64: 2006
F65: 担当:松本
A68: 株式会社 岡田商会御中
A73: 日頃はたいへんお世話になっております。さて、先月分の請求金額は下記のとおりです。下記期限までにお振込み頂きます様よろしくお願い申し上げます。
B76: 9月分請求合計
A78: 請求明細
A79: 商品番号 | B79: 商品名 | C79: 内容 | D79: 単価 | E79: 数量 | F79: 金額
A80: S1001 | B80: パソコンはじめてセット | C80: セット１ | D80: 350000 | E80: 35 | F80: =D80*E80 -> 12250000
A81: N1002 | B81: バイオス ノート | C81: PCC-C1 | D81: 250000 | E81: 30 | F81: =D81*E81 -> 7500000
A82: N1003 | B82: メブウス ノート | C82: MN-600 | D82: 280000 | E82: 30 | F82: 8400000
A83: N1004 | B83: チンクパッド ノート | C83: IVM-500 | D83: 260000 | E83: 20 | F83: 5200000
A84: D1005 | B84: 液晶ディスプレイ | C84: 15インチ | D84: 150000 | E84: 15 | F84: 2250000
A85: D1006 | B85: 液晶ディスプレイ | C85: 14インチ | D85: 120000 | E85: 20 | F85: 2400000
A86: M2002 | B86: 増設メモリ | C86: 64MB×２ | D86: 15000 | E86: 30 | F86: 450000
A87: M2003 | B87: 増設メモリ | C87: 128MB×２ | D87: 28000 | E87: 10 | F87: 280000
E88: 小計 | F88: =SUM(F80:F87) -> 38730000
E89: 消費税(5%) | F89: =F88*8% -> 3098400
E90: 総計 | F90: =SUM(F88:F89) -> 41828400
A97: お振込口座
B99: 西京銀行 赤坂支店 普通1000000
B100: (株)なんばショップ
A102: お振込期限
B103: 今月末日

Sheet 問６
A1: 時間外勤務管理表
A3: 社員番号 | B3: 氏名 | C3: 所属 | D3: 基本給 | E3: 精勤手当 | F3: 残業単価 | G3: 残業時間 | H3: 超勤手当 | I3: 合計
A4: 101 | B4: 小野 美子 | C4: 営業課 | D4: 480000 | E4: 20000 | F4: 3000 | G4: 6.5
A5: 102 | B5: 斉藤 裕行 | C5: 営業課 | D5: 336400 | E5: 25000 | F5: 2000 | G5: 3.5
A6: 103 | B6: 神田 一郎 | C6: 経理課 | D6: 268900 | E6: 25000 | F6: 2000 | G6: 3
A7: 104 | B7: 佐藤 純子 | C7: 経理課 | D7: 209500 | E7: 10000 | F7: 1500 | G7: 10.5
A8: 105 | B8: 市川 陽子 | C8: 総務課 | D8: 216100 | E8: 10000 | F8: 1500 | G8: 0
A9: 106 | B9: 中村 光昭 | C9: 総務課 | D9: 191800 | E9: 10000 | F9: 1500 | G9: 5
A10: 107 | B10: 池田 ゆかり | C10: 営業課 | D10: 217700 | E10: 20000 | F10: 1500 | G10: 0
A11: 108 | B11: 土井 浩一 | C11: 営業課 | D11: 268700 | E11: 10000 | F11: 2000 | G11: 8.5
A12: 109 | B12: 小川 佳枝 | C12: 営業課 | D12: 209200 | E12: 10000 | F12: 1500 | G12: 6
A13: 110 | B13: 玉田 光恵 | C13: 営業課 | D13: 196300 | E13: 20000 | F13: 1500 | G13: 0
A14: 合計
D18: 色のセルに数式を設定してください。
A40: 時間外勤務管理表
A42: 社員番号 | B42: 氏名 | C42: 所属 | D42: 基本給 | E42: 精勤手当 | F42: 残業単価 | G42: 残業時間 | H42: 超勤手当 | I42: 合計
A43: 101 | B43: 小野 美子 | C43: 営業課 | D43: 480000 | E43: 20000 | F43: 3000 | G43: 6.5 | H43: =F43*G43 -> 19500 | I43: =D43+E43+H43 -> 519500
A44: 102 | B44: 斉藤 裕行 | C44: 営業課 | D44: 336400 | E44: 25000 | F44: 2000 | G44: 3.5 | H44: =F44*G44 -> 7000 | I44: =D44+E44+H44 -> 368400
A45: 103 | B45: 神田 一郎 | C45: 経理課 | D45: 268900 | E45: 25000 | F45: 2000 | G45: 3 | H45: 6000 | I45: 299900
A46: 104 | B46: 佐藤 純子 | C46: 経理課 | D46: 209500 | E46: 10000 | F46: 1500 | G46: 10.5 | H46: 15750 | I46: 235250
A47: 105 | B47: 市川 陽子 | C47: 総務課 | D47: 216100 | E47: 10000 | F47: 1500 | G47: 0 | H47: 0 | I47: 226100
A48: 106 | B48: 中村 光昭 | C48: 総務課 | D48: 191800 | E48: 10000 | F48: 1500 | G48: 5 | H48: 7500 | I48: 209300
A49: 107 | B49: 池田 ゆかり | C49: 営業課 | D49: 217700 | E49: 20000 | F49: 1500 | G49: 0 | H49: 0 | I49: 237700
A50: 108 | B50: 土井 浩一 | C50: 営業課 | D50: 268700 | E50: 10000 | F50: 2000 | G50: 8.5 | H50: 17000 | I50: 295700
A51: 109 | B51: 小川 佳枝 | C51: 営業課 | D51: 209200 | E51: 10000 | F51: 1500 | G51: 6 | H51: 9000 | I51: 228200
A52: 110 | B52: 玉田 光恵 | C52: 営業課 | D52: 196300 | E52: 20000 | F52: 1500 | G52: 0 | H52: 0 | I52: 216300
A53: 合計 | D53: =SUM(D43:D52) -> 2594600 | E53: =SUM(E43:E52) -> 160000 | G53: =SUM(G43:G52) -> 43 | H53: =SUM(H43:H52) -> 81750 | I53: =SUM(I43:I52) -> 2836350

Sheet 問7
A1: パート勤務表
B3: 氏名 | C3: 斎藤政子
A4: 日 | B4: 出勤時間 | C4: 退勤時間 | D4: 休憩時間 | E4: 実働時間 | F4: 支給金額 | G4: 時給
A5: 2 | B5: 9 | C5: 17 | D5: 1 | G5: 870
A6: 4 | B6: 9 | C6: 17 | D6: 1 | G6: 870
A7: 5 | B7: 13 | C7: 18 | G7: 870
A8: 8 | B8: 9 | C8: 17 | D8: 1 | G8: 870
A9: 10 | B9: 13 | C9: 18 | G9: 870
A10: 11 | B10: 9 | C10: 17 | D10: 1 | G10: 870
A11: 15 | B11: 8 | C11: 16 | D11: 1 | G11: 870
A12: 16 | B12: 8 | C12: 16 | D12: 1 | G12: 870
A13: 20 | B13: 9 | C13: 17 | D13: 1 | G13: 870
A14: 25 | B14: 9 | C14: 17 | D14: 1 | G14: 870
A15: 26 | B15: 13 | C15: 18 | G15: 870
A16: 28 | B16: 8 | C16: 18 | D16: 1 | G16: 870
C17: 実動日数 | D17: =COUNT(A5:A16) -> 12 | E17: 合計 | F17: =SUM(F5:F16) -> 0
A41: パート勤務表
B43: 氏名 | C43: 斎藤政子
A44: 日 | B44: 出勤時間 | C44: 退勤時間 | D44: 休憩時間 | E44: 実働時間 | F44: 支給金額 | G44: 時給
A45: 2 | B45: 9 | C45: 17 | D45: 1 | E45: =C45-B45-D45 -> 7 | F45: =E45*G45 -> 6090 | G45: 870
A46: 4 | B46: 9 | C46: 17 | D46: 1 | E46: =C46-B46-D46 -> 7 | F46: =E46*G46 -> 6090 | G46: 870
A47: 5 | B47: 13 | C47: 18 | E47: 5 | F47: 4350 | G47: 870
A48: 8 | B48: 9 | C48: 17 | D48: 1 | E48: 7 | F48: 6090 | G48: 870
A49: 10 | B49: 13 | C49: 18 | E49: 5 | F49: 4350 | G49: 870
A50: 11 | B50: 9 | C50: 17 | D50: 1 | E50: 7 | F50: 6090 | G50: 870
A51: 15 | B51: 8 | C51: 16 | D51: 1 | E51: 7 | F51: 6090 | G51: 870
A52: 16 | B52: 8 | C52: 16 | D52: 1 | E52: 7 | F52: 6090 | G52: 870
A53: 20 | B53: 9 | C53: 17 | D53: 1 | E53: 7 | F53: 6090 | G53: 870
A54: 25 | B54: 9 | C54: 17 | D54: 1 | E54: 7 | F54: 6090 | G54: 870
A55: 26 | B55: 13 | C55: 18 | E55: 5 | F55: 4350 | G55: 870
A56: 28 | B56: 8 | C56: 18 | D56: 1 | E56: 9 | F56: 7830 | G56: 870
C57: 実動日数 | D57: =COUNT(A45:A56) -> 12 | E57: 合計 | F57: =SUM(F45:F56) -> 69600

Sheet 問8
A4: 商品名 | B4: 単価 | C4: 数量 | D4: 計
A5: 荻窪ラーメン | B5: 1500 | C5: 30 | D5: =B5*C5 -> 45000
A6: 讃岐うどん | B6: 2000 | C6: 25 | D6: =B6*C6 -> 50000
A7: 札幌ラーメン | B7: 1500 | C7: 16 | D7: =B7*C7 -> 24000
A8: 名古屋きしめん | B8: 2500 | C8: 24 | D8: =B8*C8 -> 60000
C9: 小計
C10: 消費税
C11: 合計
A43: 商品名 | B43: 単価 | C43: 数量 | D43: 計
A44: 荻窪ラーメン | B44: 1500 | C44: 30 | D44: =B44*C44 -> 45000
A45: 讃岐うどん | B45: 2000 | C45: 25 | D45: =B45*C45 -> 50000
A46: 札幌ラーメン | B46: 1500 | C46: 16 | D46: =B46*C46 -> 24000
A47: 名古屋きしめん | B47: 2500 | C47: 24 | D47: =B47*C47 -> 60000
C48: 小計 | D48: =SUM(D44:D47) -> 179000
C49: 消費税 | D49: =D48*8% -> 14320
C50: 合計 | D50: =SUM(D48:D49) -> 193320
